Workbook

Sheet Instructions
A1: Étape | B1: Couleur | C1: Description
A2: 1 | C2: On copie les numéros de groupe, matricules et les notes des étudiants dans les colonnes A, B et C de la feuille de travail "Analyse Notes". Il faut faire attention de faire un collage spécial avec valeur seulement. On présume que vous avez calculé la note globale de tous les étudiants de tous les groupes. Vous pouvez aussi inclure une nouvelle feuille dans laquelle vous faite le calcul des notes globales et faire les liens appropriés avec des formules. Laissez la note vide pour les abandons.
A4: 2 | C4: On recopie les formules contenue dans les colonnes D, E et F de la feuille de travail "Analyse Notes" pour chaque étudiant.
A7: 3 | C7: On actualise les données avec le bouton "Actualiser tout" de la feuille "Analyse Notes".
A9: 4 | C9: On sélectionne la méthode à utiliser : A (clipping), B (seuils) ou C (Max et largeur). Un tableau au centre de la feuille permet de faire cette sélection avec la souris. On manipule les données correspondant à la méthode choisie. Les graphiques de cette page se modifient automatiquement. Cependant, dans le cas de statistiques par groupe, il faut appuyer sur le bouton "Actualiser tout". De plus, on doit ajuster le graphique par groupe en limitant la zone de provenance des données sources aux seules colonnes contenant des données de groupe.
A11: 5 | C11: Une fois l'analyse terminée, on copie les matricules et les lettres obtenues (colonnes B et D de la feuille "Analyse Notes") pour remettre dans la feuille de calcul ayant servie au calcul de la note globale. Ici encore on peut utiliser des formules pour rapatrier ces résultats dans une autre feuille de calcul.

Sheet Analyse Notes
A1: Groupe | B1: Matricule | C1: Note | D1: Lettre | E1: Points | F1: Arondies | G1: NB Arondies | I1: Sigma | J1: Sigma2 | K1: Nombre | M1: NB Lettre | P1: Idéal | T1: Final
A2: A01 | C2: 70 | D2: =IF(C2="","",VLOOKUP(C2,$T$3:$Y$11,6,TRUE)) -> B- | E2: =IF(D2="","",VLOOKUP(D2,$O$3:$X$11,10,FALSE)) -> 2.7 | F2: =IF(C2="","",TRUNC(C2,0)) -> 70 | G2: Arondies | H2: Total | I2: =SUM(I3:I101) -> 1501 | J2: =SUM(J3:J101) -> 111441 | K2: =SUM(K3:K101) -> 21 | M2: Lettre | N2: Total | P2: min | Q2: max | R2: NB | S2: % | T2: min | U2: max | V2: NB | W2: % | Z2: Grille de conversion | AB2: Grille de conversion abrégée
A3: A01 | C3: 82 | D3: A- | E3: 3.7 | F3: 82 | G3: 32 | H3: 1 | I3: =IF(L3,H3*G3,"") -> 32 | J3: =IF(L3,G3*G3*H3,"") -> 1024 | K3: =IF(L3,H3,"") -> 1 | L3: TRUE | M3: E | N3: 2 | O3: E | P3: -10 | Q3: -1 | R3: =ROUND($N$12*S3,0) -> 1 | S3: =S9 -> 0.0655 | T3: 0 | U3: =ROUNDDOWN($Q$34+Q3*$Q$35,1) -> 61.1 | V3: =IF(ISERROR(VLOOKUP(O3,$M$3:$N$11,2,FALSE)),0,VLOOKUP(O3,$M$3:$N$11,2,FALSE)) -> 2 | W3: =V3/$N$12 -> 0.09523809524 | X3: 0 | Y3: E | Z3: =CONCATENATE(Y3,IF(LEN(Y3)=1," : "," : "),IF(Y3<>"E",CONCATENATE(FIXED(T3,1)," <= ")," "),"note",IF(Y3<>"A+",CONCATENATE(" < ",FIXED(U3,1)),"")) -> E : note < 61.1 | AB3: =CONCATENATE(Y3,IF(LEN(Y3)=1,":",":"),IF(Y3<>"E",CONCATENATE("[",FIXED(T3,1),";"),"[0;"),IF(Y3<>"A+",CONCATENATE(FIXED(U3,1),")"),"100]")) -> E:[0;61.1)
A4: A01 | C4: 80 | D4: A- | E4: 3.7 | F4: 80 | G4: 33 | H4: 1 | I4: =IF(L4,H4*G4,"") -> 33 | J4: =IF(L4,G4*G4*H4,"") -> 1089 | K4: =IF(L4,H4,"") -> 1 | L4: TRUE | M4: C | N4: 1 | O4: C | P4: =Q3 -> -1 | Q4: -0.75 | R4: =ROUND($N$12*S4,0) -> 3 | S4: =S8 -> 0.121 | T4: =U3 -> 61.1 | U4: =ROUNDDOWN($Q$34+Q4*$Q$35,1) -> 64.8 | V4: 1 | W4: 0.04761904762 | X4: 2 | Y4: C | Z4: C : 61.1 <= note < 64.8 | AB4: =CONCATENATE(Y4,IF(LEN(Y4)=1,":",":"),IF(Y4<>"E",CONCATENATE("[",FIXED(T4,1),";"),"[0;"),IF(Y4<>"A+",CONCATENATE(FIXED(U4,1),")"),"100]")) -> C:[61.1;64.8)
A5: A01 | C5: 72 | D5: B- | E5: 2.7 | F5: 72 | G5: 64 | H5: 1 | I5: 64 | J5: 4096 | K5: 1 | L5: TRUE | M5: C+ | N5: 1 | O5: C+ | P5: =Q4 -> -0.75 | Q5: -0.5 | R5: 4 | S5: =S7 -> 0.1747 | T5: =U4 -> 64.8 | U5: 68.5 | V5: 1 | W5: 0.04761904762 | X5: 2.3 | Y5: C+ | Z5: C+ : 64.8 <= note < 68.5 | AB5: C+:[64.8;68.5)
A6: A01 | C6: 80 | D6: A- | E6: 3.7 | F6: 80 | G6: 67 | H6: 1 | I6: 67 | J6: 4489 | K6: 1 | L6: TRUE | M6: B- | N6: 6 | O6: B- | P6: -0.5 | Q6: -0.25 | R6: 4 | S6: =(0.5987-0.5)*2 -> 0.1974 | T6: 68.5 | U6: 72.2 | V6: 6 | W6: 0.2857142857 | X6: 2.7 | Y6: B- | Z6: B- : 68.5 <= note < 72.2 | AB6: B-:[68.5;72.2)
A7: A01 | C7: 33 | D7: E | E7: 0 | F7: 33 | G7: 69 | H7: 1 | I7: 69 | J7: 4761 | K7: 1 | L7: TRUE | M7: B | N7: 2 | O7: B | P7: -0.25 | Q7: 0 | R7: 4 | S7: =0.7734-0.5987 -> 0.1747 | T7: 72.2 | U7: 75.9 | V7: 2 | W7: 0.09523809524 | X7: 3 | Y7: B | Z7: B : 72.2 <= note < 75.9 | AB7: B:[72.2;75.9)
A8: A01 | C8: 83 | D8: A- | E8: 3.7 | F8: 83 | G8: 70 | H8: 2 | I8: 140 | J8: 9800 | K8: 2 | L8: TRUE | M8: B+ | N8: 2 | O8: B+ | P8: 0 | Q8: 0.25 | R8: 3 | S8: =0.8944-0.7734 -> 0.121 | T8: 75.9 | U8: 79.6 | V8: 2 | W8: 0.09523809524 | X8: 3.3 | Y8: B+ | Z8: B+ : 75.9 <= note < 79.6 | AB8: B+:[75.9;79.6)
A9: A02 | C9: 70 | D9: B- | E9: 2.7 | F9: 70 | G9: 71 | H9: 1 | I9: 71 | J9: 5041 | K9: 1 | L9: TRUE | M9: A- | N9: 5 | O9: A- | P9: 0.25 | Q9: 0.5 | R9: 1 | S9: =0.9599-0.8944 -> 0.0655 | T9: 79.6 | U9: 83.3 | V9: 5 | W9: 0.2380952381 | X9: 3.7 | Y9: A- | Z9: A- : 79.6 <= note < 83.3 | AB9: A-:[79.6;83.3)
A10: A02 | C10: 71 | D10: B- | E10: 2.7 | F10: 71 | G10: 72 | H10: 2 | I10: 144 | J10: 10368 | K10: 2 | L10: TRUE | M10: A+ | N10: 2 | O10: A | P10: 0.5 | Q10: 0.75 | R10: 1 | S10: =0.9878-0.9599 -> 0.0279 | T10: 83.3 | U10: 87 | V10: 0 | W10: 0 | X10: 4 | Y10: A | Z10: A : 83.3 <= note < 87.0 | AB10: A:[83.3;87.0)
A11: A02 | C11: 72 | D11: B- | E11: 2.7 | F11: 72 | G11: 73 | H11: 1 | I11: 73 | J11: 5329 | K11: 1 | L11: TRUE | O11: A+ | P11: 0.75 | Q11: 10 | R11: 0 | S11: =0.997-0.9878 -> 0.0092 | T11: 87 | U11: 223.9 | V11: 2 | W11: =V11/$N$12 -> 0.09523809524 | X11: 4.3 | Y11: A+ | Z11: =CONCATENATE(Y11,IF(LEN(Y11)=1," : "," : "),IF(Y11<>"E",CONCATENATE(FIXED(T11,1)," <= ")," "),"note",IF(Y11<>"A+",CONCATENATE(" < ",FIXED(U11,1)),"")) -> A+ : 87.0 <= note | AB11: A+:[87.0;100]
A12: A02 | C12: 69 | D12: B- | E12: 2.7 | F12: 69 | G12: 74 | H12: 1 | I12: 74 | J12: 5476 | K12: 1 | L12: TRUE | M12: NB total | N12: =SUM(N3:N11) -> 21
A13: A02 | C13: 32 | D13: E | E13: 0 | F13: 32 | G13: 76 | H13: 1 | I13: 76 | J13: 5776 | K13: 1 | L13: TRUE | M13: Choisir | P13: A- Clipping | T13: E | U13: 0 | V13: =W3 -> 0.09523809524 | W13: 0.05
A14: A02 | C14: 76 | D14: B+ | E14: 3.3 | F14: 76 | G14: 79 | H14: 1 | I14: 79 | J14: 6241 | K14: 1 | L14: TRUE | M14: Méthode | N14: =LOOKUP(P33,P29:P31,Q29:Q31) -> C | P14: Moy. est. | Q14: =I2/K2 -> 71.47619048 | T14: C,C+ | U14: 0.1 | V14: =SUM(W4:W5) -> 0.09523809524 | W14: 0.2
A15: A02 | C15: 64 | D15: C | E15: 2 | F15: 64 | G15: 80 | H15: 3 | I15: 240 | J15: 19200 | K15: 3 | L15: TRUE | M15: A - B - C | P15: Écart est. | Q15: =SQRT((J2-I2*I2/K2)/(K2-1)) -> 14.41394827 | T15: B-,B,B+ | U15: 0.4 | V15: =SUM(W6:W8) -> 0.4761904762 | W15: 0.5
A16: A02 | C16: 80 | D16: A- | E16: 3.7 | F16: 80 | G16: 82 | H16: 1 | I16: 82 | J16: 6724 | K16: 1 | L16: TRUE | T16: A- | U16: 0.15 | V16: =W9 -> 0.2380952381 | W16: 0.3
A17: A02 | C17: 67 | D17: C+ | E17: 2.3 | F17: 67 | G17: 83 | H17: 1 | I17: 83 | J17: 6889 | K17: 1 | L17: TRUE | P17: B- Seuils | T17: A | U17: 0.1 | V17: =W10 -> 0 | W17: 0.2
A18: A03 | G18: 87 | H18: 2 | I18: 174 | J18: 15138 | K18: 2 | L18: TRUE | M18: Statistiques | P18: Min. A+ | Q18: =T29/10 -> 87 | T18: A+ | U18: 0.04 | V18: =W11 -> 0.09523809524 | W18: 0.07
A19: A03 | C19: 79 | D19: B+ | E19: 3.3 | F19: 79 | I19: 0 | J19: 0 | K19: 0 | L19: TRUE | M19: Moyenne | N19: =AVERAGE(C:C) -> 71.47619048 | P19: Max. E | Q19: =T30/10 -> 64
A20: A03 | C20: 87 | D20: A+ | E20: 4.3 | F20: 87 | I20: 0 | J20: 0 | K20: 0 | L20: TRUE | M20: Écart | N20: =STDEV(C:C) -> 14.41394827
A21: A03 | C21: 87 | D21: A+ | E21: 4.3 | F21: 87 | I21: 0 | J21: 0 | K21: 0 | L21: TRUE | M21: Médiane | N21: =MEDIAN(C:C) -> 73 | P21: C-Max et Largeur
A22: A03 | C22: 74 | D22: B | E22: 3 | F22: 74 | I22: 0 | J22: 0 | K22: 0 | L22: TRUE | M22: Moyenne | N22: =AVERAGE(E:E) -> 2.866666667 | P22: Min. A+ | Q22: =T33/10 -> 87
A23: A03 | C23: 73 | D23: =IF(C23="","",VLOOKUP(C23,$T$3:$Y$14,6,TRUE)) -> B | E23: =IF(D23="","",VLOOKUP(D23,$O$3:$X$14,10,FALSE)) -> 3 | F23: 73 | I23: 0 | J23: 0 | K23: 0 | L23: TRUE | M23: Écart | N23: =STDEVP(E:E) -> 1.105541597 | P23: Largeur | Q23: =T34/10 -> 3.7
I24: 0 | J24: 0 | K24: 0 | L24: TRUE
I25: 0 | J25: 0 | K25: 0 | L25: TRUE
I26: 0 | J26: 0 | K26: 0 | L26: TRUE
I27: 0 | J27: 0 | K27: 0 | L27: TRUE
I28: 0 | J28: 0 | K28: 0 | L28: TRUE | P28: Sélection | Q28: Lettre | S28: Méthode B
I29: 0 | J29: 0 | K29: 0 | L29: TRUE | P29: 1 | Q29: A | S29: Min A+ * 10 | T29: 870 | U29: Moy. | V29: =Q19-Q3*V30 -> 77.14285714
I30: 0 | J30: 0 | K30: 0 | L30: TRUE | P30: 2 | Q30: B | S30: Max E * 10 | T30: 640 | U30: Écart | V30: =(Q18-Q19)/(P11-Q3) -> 13.14285714
I31: 0 | J31: 0 | K31: 0 | L31: TRUE | P31: 3 | Q31: C
I32: 0 | J32: 0 | K32: 0 | L32: TRUE | S32: Méthode C
I33: 0 | J33: 0 | K33: 0 | L33: TRUE | O33: 2 | P33: 3 | S33: Min A+ * 10 | T33: 870 | U33: Moy. | V33: =Q22-Q10*V34 -> 75.9
I34: 0 | J34: 0 | K34: 0 | L34: TRUE | P34: Moy. | Q34: =IF(N14="A",Q14,IF(N14="B",V29,V33)) -> 75.9 | S34: Écart * 10 | T34: 37 | U34: Écart | V34: =Q23/(Q10-P10) -> 14.8
I35: 0 | J35: 0 | K35: 0 | L35: TRUE | P35: Écart | Q35: =IF(N14="A",Q15,IF(N14="B",V30,V34)) -> 14.8
I36: 0 | J36: 0 | K36: 0 | L36: TRUE
I37: 0 | J37: 0 | K37: 0 | L37: TRUE
I38: 0 | J38: 0 | K38: 0 | L38: TRUE
I39: 0 | J39: 0 | K39: 0 | L39: TRUE
I40: 0 | J40: 0 | K40: 0 | L40: TRUE
I41: 0 | J41: 0 | K41: 0 | L41: TRUE
I42: 0 | J42: 0 | K42: 0 | L42: TRUE
L43: FALSE
L44: FALSE
L45: FALSE
I46: 0 | J46: 0 | K46: 0 | L46: TRUE
L47: FALSE
L48: FALSE
L49: FALSE
L50: FALSE
L51: FALSE
L52: FALSE
L53: FALSE
L54: FALSE
L55: FALSE
L56: FALSE
L57: FALSE
L58: FALSE
L59: FALSE
L60: FALSE
L61: FALSE
L62: FALSE
L63: FALSE
L64: FALSE
L65: FALSE
L66: FALSE
L67: FALSE
I68: =IF(L68,H68*G68,"") ->  | J68: =IF(L68,G68*G68*H68,"") ->  | K68: =IF(L68,H68,"") ->  | L68: FALSE
L69: FALSE
L70: FALSE
L71: FALSE
L72: FALSE
L73: FALSE
L74: FALSE
L75: FALSE
L76: FALSE
L77: FALSE
L78: FALSE
L79: FALSE
L80: FALSE
L81: FALSE
L82: FALSE
L83: FALSE
L84: FALSE
L85: FALSE
L86: FALSE
L87: FALSE
L88: FALSE
L89: FALSE
L90: FALSE
L91: FALSE
L92: FALSE
L93: FALSE
L94: FALSE
L95: FALSE
L96: FALSE
L97: FALSE
L98: FALSE
L99: FALSE
L100: FALSE
L101: FALSE

Sheet Analyse par groupe
A3: NB Lettre | B3: Groupe
A4: Lettre | B4: A01 | C4: A02 | D4: A03 | E4: Total
A5: E | B5: 1 | C5: 1 | E5: 2
A6: C+ | C6: 1 | E6: 1
A7: B- | C7: 1 | E7: 1
A8: B | B8: 1 | C8: 3 | E8: 4
A9: B+ | B9: 1 | C9: 1 | D9: 2 | E9: 4
A10: A- | C10: 1 | E10: 1
A11: A | B11: 3 | C11: 1 | D11: 1 | E11: 5
A12: A+ | B12: 1 | D12: 2 | E12: 3
D13: 1 | E13: 1
A14: Total | B14: 7 | C14: 9 | D14: 6 | E14: 22
B20: =B4 -> A01 | C20: =C4 -> A02 | D20: A03 | E20: Total | F20: 0 | G20: 0 | H20: 0 | I20: 0 | J20: 0 | K20: 0 | L20: 0 | M20: 0
A21: E | B21: =IF(ISERROR(VLOOKUP($A21,$A$5:$M$13,COLUMN(B21),FALSE)),0,VLOOKUP($A21,$A$5:$M$13,COLUMN(B21),FALSE)) -> 1 | C21: =IF(ISERROR(VLOOKUP($A21,$A$5:$M$13,COLUMN(C21),FALSE)),0,VLOOKUP($A21,$A$5:$M$13,COLUMN(C21),FALSE)) -> 1 | D21: 0 | E21: 2 | F21: 0 | G21: 0 | H21: 0 | I21: 0 | J21: 0 | K21: 0 | L21: 0 | M21: 0
A22: C | B22: =IF(ISERROR(VLOOKUP($A22,$A$5:$M$13,COLUMN(B22),FALSE)),0,VLOOKUP($A22,$A$5:$M$13,COLUMN(B22),FALSE)) -> 0 | C22: 0 | D22: 0 | E22: 0 | F22: 0 | G22: 0 | H22: 0 | I22: 0 | J22: 0 | K22: 0 | L22: 0 | M22: 0
A23: C+ | B23: 0 | C23: 1 | D23: 0 | E23: 1 | F23: 0 | G23: 0 | H23: 0 | I23: 0 | J23: 0 | K23: 0 | L23: 0 | M23: 0
A24: B- | B24: 0 | C24: 1 | D24: 0 | E24: 1 | F24: 0 | G24: 0 | H24: 0 | I24: 0 | J24: 0 | K24: 0 | L24: 0 | M24: 0
A25: B | B25: 1 | C25: 3 | D25: 0 | E25: 4 | F25: 0 | G25: 0 | H25: 0 | I25: 0 | J25: 0 | K25: 0 | L25: 0 | M25: 0
A26: B+ | B26: 1 | C26: 1 | D26: 2 | E26: 4 | F26: 0 | G26: 0 | H26: 0 | I26: 0 | J26: 0 | K26: 0 | L26: 0 | M26: 0
A27: A- | B27: 0 | C27: 1 | D27: 0 | E27: 1 | F27: 0 | G27: 0 | H27: 0 | I27: 0 | J27: 0 | K27: 0 | L27: 0 | M27: 0
A28: A | B28: 3 | C28: 1 | D28: 1 | E28: 5 | F28: 0 | G28: 0 | H28: 0 | I28: 0 | J28: 0 | K28: 0 | L28: 0 | M28: 0
A29: A+ | B29: 1 | C29: 0 | D29: 2 | E29: 3 | F29: 0 | G29: 0 | H29: 0 | I29: 0 | J29: 0 | K29: 0 | L29: 0 | M29: 0
